Workbook

Sheet 财务报表
B2: 年度财务报表 | K2: 2016 | N2: 选择单元格 L2 中的报表年份
B3: 你的公司名称 | N3: 若要编辑数据，请选择财务数据输入工作表
B5: 关键指标 | D5: 单击以更改报表关键指标
B7: =计算!B8 -> 收入 | D7: =计算!B9 -> 净利润 | F7: =计算!B10 -> 利息 | H7: =计算!B11 -> 折旧值 | J7: =计算!B12 -> 营业利润
B8: =IFERROR(计算!G8,"") -> 1805838.8 | D8: =IFERROR(计算!G9,"") -> 674748.5 | F8: =IFERROR(计算!G10,"") -> 37894.7 | H8: =IFERROR(计算!G11,"") -> 55468.8 | J8: =IFERROR(计算!G12,"") -> 734259.9
B9: =计算!H8 -> 0.00309537539 | D9: =计算!H9 -> 0.01814866286 | F9: =计算!H10 -> 0.1351496271 | H9: =计算!H11 -> 0.09440022729 | J9: =计算!H12 -> -0.05033560823
B13: 全部指标 | D13: 不要修改以下信息。单击以输入财务数据
B15: 指标 | D15: ="报表年 ("&SelectedYear&")" -> 报表年 (2016) | F15: ="去年 ("&SelectedYear-1&")" -> 去年 (2015) | H15: 更改百分比 | I15: =CONCATENATE(年数," 年趋势") -> 5 年趋势
B16: =计算!B15 -> 收入 | D16: =IF($B16="","",计算!G15) -> 1805838.8 | F16: =IF($B16="","",计算!F15) -> 1800266.3 | H16: =IFERROR(D16/F16-1,"") -> 0.00309537539
B17: =计算!B16 -> 运营开支 | D17: =IF($B17="","",计算!G16) -> 944194.5 | F17: =IF($B17="","",计算!F16) -> 808833.3 | H17: 0.1673536438
B18: =计算!B17 -> 营业利润 | D18: =IF($B18="","",计算!G17) -> 734259.9 | F18: =IF($B18="","",计算!F17) -> 773178.3 | H18: -0.05033560823
B19: =计算!B18 -> 折旧值 | D19: =IF($B19="","",计算!G18) -> 55468.8 | F19: =IF($B19="","",计算!F18) -> 50684.2 | H19: 0.09440022729
B20: =计算!B19 -> 利息 | D20: =IF($B20="","",计算!G19) -> 37894.7 | F20: =IF($B20="","",计算!F19) -> 33383 | H20: 0.1351496271
B21: =计算!B20 -> 净利润 | D21: =IF($B21="","",计算!G20) -> 674748.5 | F21: =IF($B21="","",计算!F20) -> 662721 | H21: 0.01814866286
B22: =计算!B21 -> 税费 | D22: =IF($B22="","",计算!G21) -> 314082.5 | F22: =IF($B22="","",计算!F21) -> 294245.3 | H22: 0.06741721958
B23: =计算!B22 -> 税后利润 | D23: =IF($B23="","",计算!G22) -> 502476.8 | F23: =IF($B23="","",计算!F22) -> 424382 | H23: 0.1840200574
B24: =计算!B23 -> 指标 1 | D24: =IF($B24="","",计算!G23) -> 199.6 | F24: =IF($B24="","",计算!F23) -> 167.8 | H24: 0.189511323
B25: =计算!B24 -> 指标 2 | D25: =IF($B25="","",计算!G24) -> 260.1 | F25: =IF($B25="","",计算!F24) -> 218.4 | H25: 0.1909340659
B26: =计算!B25 -> 指标 3 | D26: =IF($B26="","",计算!G25) -> 310.8 | F26: =IF($B26="","",计算!F25) -> 263.9 | H26: 0.1777188329
B27: =计算!B26 -> 指标 4 | D27: =IF($B27="","",计算!G26) -> 149.2 | F27: =IF($B27="","",计算!F26) -> 145.9 | H27: 0.02261823167
B28: =计算!B27 -> 指标 5 | D28: =IF($B28="","",计算!G27) -> 10.3 | F28: =IF($B28="","",计算!F27) -> 10 | H28: 0.03
B29: =计算!B28 -> 指标 6 | D29: =IF($B29="","",计算!G28) -> 3.4 | F29: =IF($B29="","",计算!F28) -> 3 | H29: 0.1333333333
B30: =计算!B29 ->  | D30: =IF($B30="","",计算!G29) ->  | F30: =IF($B30="","",计算!F29) -> 
B31: =计算!B30 ->  | D31: =IF($B31="","",计算!G30) ->  | F31: =IF($B31="","",计算!F30) -> 
B32: =计算!B31 ->  | D32: =IF($B32="","",计算!G31) ->  | F32: =IF($B32="","",计算!F31) -> 
B33: =计算!B32 ->  | D33: =IF($B33="","",计算!G32) ->  | F33: =IF($B33="","",计算!F32) -> 
B34: =计算!B33 ->  | D34: =IF($B34="","",计算!G33) ->  | F34: =IF($B34="","",计算!F33) -> 
B35: =计算!B34 ->  | D35: =IF($B35="","",计算!G34) ->  | F35: =IF($B35="","",计算!F34) -> 
B36: =计算!B35 ->  | D36: =IF($B36="","",计算!G35) ->  | F36: =IF($B36="","",计算!F35) -> 
B37: =计算!B36 ->  | D37: =IF($B37="","",计算!G36) ->  | F37: =IF($B37="","",计算!F36) -> 
B38: =计算!B37 ->  | D38: =IF($B38="","",计算!G37) ->  | F38: =IF($B38="","",计算!F37) -> 
B39: =计算!B38 ->  | D39: =IF($B39="","",计算!G38) ->  | F39: =IF($B39="","",计算!F38) -> 
B40: =计算!B39 ->  | D40: =IF($B40="","",计算!G39) ->  | F40: =IF($B40="","",计算!F39) -> 

Sheet 财务数据输入
B2: 输入你的财务数据
B3: 可定义针对 7 年的多达 25 个关键指标
B4: 单击以查看财务报表
B5: 指标名称 | C5: 2010 | D5: 2011 | E5: 2012 | F5: 2013 | G5: 2014 | H5: 2015 | I5: 2016
B6: 收入 | C6: 1250000 | D6: 1341374.5 | E6: 1427283.8 | F6: 1506874.6 | G6: 1650445.6 | H6: 1800266.3 | I6: 1805838.8
B7: 运营开支 | C7: 650000 | D7: 709623.1 | E7: 759248.6 | F7: 789012.7 | G7: 816743.7 | H7: 808833.3 | I7: 944194.5
B8: 营业利润 | C8: 600000 | D8: 642073 | E8: 688576.9 | F8: 756432.5 | G8: 767552.6 | H8: 773178.3 | I8: 734259.9
B9: 折旧值 | C9: 45000 | D9: 45177.7 | E9: 46569.2 | F9: 49742.1 | G9: 50241.1 | H9: 50684.2 | I9: 55468.8
B10: 利息 | C10: 25000 | D10: 27458.2 | E10: 28931.1 | F10: 31361.2 | G10: 31485.3 | H10: 33383 | I10: 37894.7
B11: 净利润 | C11: 540000 | D11: 547610.75 | E11: 558608.1 | F11: 597479.5 | G11: 614835.9 | H11: 662721 | I11: 674748.5
B12: 税费 | C12: 220000 | D12: 239205.4 | E12: 255767.4 | F12: 274988.6 | G12: 283356.7 | H12: 294245.3 | I12: 314082.5
B13: 税后利润 | C13: 320000 | D13: 349434.9 | E13: 384185.3 | F13: 398950.5 | G13: 406077.3 | H13: 424382 | I13: 502476.8
B14: 指标 1 | C14: 128 | D14: 128.1 | E14: 137.8 | F14: 142.9 | G14: 155.7 | H14: 167.8 | I14: 199.6
B15: 指标 2 | C15: 182 | D15: 185.9 | E15: 192.2 | F15: 201.7 | G15: 204.8 | H15: 218.4 | I15: 260.1
B16: 指标 3 | C16: 191 | D16: 205.5 | E16: 218.7 | F16: 231.9 | G16: 246.7 | H16: 263.9 | I16: 310.8
B17: 指标 4 | C17: 121 | D17: 122.1 | E17: 125.9 | F17: 137 | G17: 137.6 | H17: 145.9 | I17: 149.2
B18: 指标 5 | C18: 7.5 | D18: 7.9 | E18: 8.5 | F18: 8.9 | G18: 9.1 | H18: 10 | I18: 10.3
B19: 指标 6 | C19: 2.3 | D19: 2.5 | E19: 2.7 | F19: 2.8 | G19: 2.9 | H19: 3 | I19: 3.4

Sheet 关键指标设置
B2: 在此处定义关键指标
B3: 最多选择 5 个要在报表顶部显示的关键指标
B4: 单击以查看财务报表
B5: 1 | C5: 收入 | E5: =IF(ISBLANK(C5),"← 请从下拉列表中选择一个值",IF(COUNTIF($C$5:C5,C5)>1,"你已多次选中 "&C5&"。","")) -> 
B6: 2 | C6: 净利润 | E6: =IF(ISBLANK(C6),"← 请从下拉列表中选择一个值",IF(COUNTIF($C$5:C6,C6)>1,"你已多次选中 "&C6&"。","")) -> 
B7: 3 | C7: 利息 | E7: =IF(ISBLANK(C7),"← 请从下拉列表中选择一个值",IF(COUNTIF($C$5:C7,C7)>1,"你已多次选中 "&C7&"。","")) -> 
B8: 4 | C8: 折旧值 | E8: =IF(ISBLANK(C8),"← 请从下拉列表中选择一个值",IF(COUNTIF($C$5:C8,C8)>1,"你已多次选中 "&C8&"。","")) -> 
B9: 5 | C9: 营业利润 | E9: =IF(ISBLANK(C9),"← 请从下拉列表中选择一个值",IF(COUNTIF($C$5:C9,C9)>1,"你已多次选中 "&C9&"。","")) -> 

Sheet 计算 (hidden)
A1: 此工作表用于财务报表计算且应保持隐藏状态。
D2: 位置
B3: 今年 | C3: =SelectedYear -> 2016 | D3: =MATCH(C3,lstYears,0)+1 -> 8
B4: 去年 | C4: =C3-1 -> 2015 | D4: =MATCH(C4,lstYears,0)+1 -> 7
B6: 位置 | C6: =MATCH(C7,lstYears,0)+1 -> 4 | D6: =MATCH(D7,lstYears,0)+1 -> 5 | E6: =MATCH(E7,lstYears,0)+1 -> 6 | F6: =MATCH(F7,lstYears,0)+1 -> 7 | G6: =MATCH(G7,lstYears,0)+1 -> 8 | I6: =COUNT(C6:G6) -> 5
B7: 关键指标 | C7: =D7-1 -> 2012 | D7: =E7-1 -> 2013 | E7: =F7-1 -> 2014 | F7: =G7-1 -> 2015 | G7: =C3 -> 2016
A8: =MATCH(B8,财务数据输入!$B$6:$B$30,0) -> 1 | B8: =IF(关键指标设置!C5="","",关键指标设置!C5) -> 收入 | C8: =IFERROR(INDEX(财务数据输入!$B$6:$I$30,$A8,C$6),NA()) -> 1427283.8 | D8: =IFERROR(INDEX(财务数据输入!$B$6:$I$30,$A8,D$6),NA()) -> 1506874.6 | E8: =IFERROR(INDEX(财务数据输入!$B$6:$I$30,$A8,E$6),NA()) -> 1650445.6 | F8: =IFERROR(INDEX(财务数据输入!$B$6:$I$30,$A8,F$6),NA()) -> 1800266.3 | G8: =IFERROR(INDEX(财务数据输入!$B$6:$I$30,$A8,G$6),NA()) -> 1805838.8 | H8: =IFERROR(G8/F8-1,"") -> 0.00309537539
A9: =MATCH(B9,财务数据输入!$B$6:$B$30,0) -> 6 | B9: =IF(关键指标设置!C6="","",关键指标设置!C6) -> 净利润 | C9: =IFERROR(INDEX(财务数据输入!$B$6:$I$30,$A9,C$6),NA()) -> 558608.1 | D9: =IFERROR(INDEX(财务数据输入!$B$6:$I$30,$A9,D$6),NA()) -> 597479.5 | E9: =IFERROR(INDEX(财务数据输入!$B$6:$I$30,$A9,E$6),NA()) -> 614835.9 | F9: =IFERROR(INDEX(财务数据输入!$B$6:$I$30,$A9,F$6),NA()) -> 662721 | G9: =IFERROR(INDEX(财务数据输入!$B$6:$I$30,$A9,G$6),NA()) -> 674748.5 | H9: =IFERROR(G9/F9-1,"") -> 0.01814866286
A10: =MATCH(B10,财务数据输入!$B$6:$B$30,0) -> 5 | B10: =IF(关键指标设置!C7="","",关键指标设置!C7) -> 利息 | C10: =IFERROR(INDEX(财务数据输入!$B$6:$I$30,$A10,C$6),NA()) -> 28931.1 | D10: =IFERROR(INDEX(财务数据输入!$B$6:$I$30,$A10,D$6),NA()) -> 31361.2 | E10: =IFERROR(INDEX(财务数据输入!$B$6:$I$30,$A10,E$6),NA()) -> 31485.3 | F10: =IFERROR(INDEX(财务数据输入!$B$6:$I$30,$A10,F$6),NA()) -> 33383 | G10: =IFERROR(INDEX(财务数据输入!$B$6:$I$30,$A10,G$6),NA()) -> 37894.7 | H10: 0.1351496271
A11: =MATCH(B11,财务数据输入!$B$6:$B$30,0) -> 4 | B11: =IF(关键指标设置!C8="","",关键指标设置!C8) -> 折旧值 | C11: =IFERROR(INDEX(财务数据输入!$B$6:$I$30,$A11,C$6),NA()) -> 46569.2 | D11: =IFERROR(INDEX(财务数据输入!$B$6:$I$30,$A11,D$6),NA()) -> 49742.1 | E11: =IFERROR(INDEX(财务数据输入!$B$6:$I$30,$A11,E$6),NA()) -> 50241.1 | F11: =IFERROR(INDEX(财务数据输入!$B$6:$I$30,$A11,F$6),NA()) -> 50684.2 | G11: =IFERROR(INDEX(财务数据输入!$B$6:$I$30,$A11,G$6),NA()) -> 55468.8 | H11: 0.09440022729
A12: =MATCH(B12,财务数据输入!$B$6:$B$30,0) -> 3 | B12: =IF(关键指标设置!C9="","",关键指标设置!C9) -> 营业利润 | C12: =IFERROR(INDEX(财务数据输入!$B$6:$I$30,$A12,C$6),NA()) -> 688576.9 | D12: =IFERROR(INDEX(财务数据输入!$B$6:$I$30,$A12,D$6),NA()) -> 756432.5 | E12: =IFERROR(INDEX(财务数据输入!$B$6:$I$30,$A12,E$6),NA()) -> 767552.6 | F12: =IFERROR(INDEX(财务数据输入!$B$6:$I$30,$A12,F$6),NA()) -> 773178.3 | G12: =IFERROR(INDEX(财务数据输入!$B$6:$I$30,$A12,G$6),NA()) -> 734259.9 | H12: -0.05033560823
B14: 全部指标（多达 25 个指标）
A15: =ROWS($B$15:B15) -> 1 | B15: =IF(财务数据输入!B6=0,"",财务数据输入!B6) -> 收入 | C15: =IF(B15="",NA(),IFERROR(INDEX(财务数据输入!$B$6:$I$30,$A15,C$6),NA())) -> 1427283.8 | D15: =IF(B15="",NA(),IFERROR(INDEX(财务数据输入!$B$6:$I$30,$A15,D$6),NA())) -> 1506874.6 | E15: =IF(B15="",NA(),IFERROR(INDEX(财务数据输入!$B$6:$I$30,$A15,E$6),NA())) -> 1650445.6 | F15: =IF(B15="",NA(),IFERROR(INDEX(财务数据输入!$B$6:$I$30,$A15,F$6),NA())) -> 1800266.3 | G15: =IF(B15="",NA(),IFERROR(INDEX(财务数据输入!$B$6:$I$30,$A15,G$6),NA())) -> 1805838.8
A16: =ROWS($B$15:B16) -> 2 | B16: =IF(财务数据输入!B7=0,"",财务数据输入!B7) -> 运营开支 | C16: =IF(B16="",NA(),IFERROR(INDEX(财务数据输入!$B$6:$I$30,$A16,C$6),NA())) -> 759248.6 | D16: =IF(B16="",NA(),IFERROR(INDEX(财务数据输入!$B$6:$I$30,$A16,D$6),NA())) -> 789012.7 | E16: =IF(B16="",NA(),IFERROR(INDEX(财务数据输入!$B$6:$I$30,$A16,E$6),NA())) -> 816743.7 | F16: =IF(B16="",NA(),IFERROR(INDEX(财务数据输入!$B$6:$I$30,$A16,F$6),NA())) -> 808833.3 | G16: =IF(B16="",NA(),IFERROR(INDEX(财务数据输入!$B$6:$I$30,$A16,G$6),NA())) -> 944194.5
A17: =ROWS($B$15:B17) -> 3 | B17: =IF(财务数据输入!B8=0,"",财务数据输入!B8) -> 营业利润 | C17: =IF(B17="",NA(),IFERROR(INDEX(财务数据输入!$B$6:$I$30,$A17,C$6),NA())) -> 688576.9 | D17: =IF(B17="",NA(),IFERROR(INDEX(财务数据输入!$B$6:$I$30,$A17,D$6),NA())) -> 756432.5 | E17: =IF(B17="",NA(),IFERROR(INDEX(财务数据输入!$B$6:$I$30,$A17,E$6),NA())) -> 767552.6 | F17: =IF(B17="",NA(),IFERROR(INDEX(财务数据输入!$B$6:$I$30,$A17,F$6),NA())) -> 773178.3 | G17: =IF(B17="",NA(),IFERROR(INDEX(财务数据输入!$B$6:$I$30,$A17,G$6),NA())) -> 734259.9
A18: =ROWS($B$15:B18) -> 4 | B18: =IF(财务数据输入!B9=0,"",财务数据输入!B9) -> 折旧值 | C18: =IF(B18="",NA(),IFERROR(INDEX(财务数据输入!$B$6:$I$30,$A18,C$6),NA())) -> 46569.2 | D18: =IF(B18="",NA(),IFERROR(INDEX(财务数据输入!$B$6:$I$30,$A18,D$6),NA())) -> 49742.1 | E18: =IF(B18="",NA(),IFERROR(INDEX(财务数据输入!$B$6:$I$30,$A18,E$6),NA())) -> 50241.1 | F18: =IF(B18="",NA(),IFERROR(INDEX(财务数据输入!$B$6:$I$30,$A18,F$6),NA())) -> 50684.2 | G18: =IF(B18="",NA(),IFERROR(INDEX(财务数据输入!$B$6:$I$30,$A18,G$6),NA())) -> 55468.8
A19: =ROWS($B$15:B19) -> 5 | B19: =IF(财务数据输入!B10=0,"",财务数据输入!B10) -> 利息 | C19: =IF(B19="",NA(),IFERROR(INDEX(财务数据输入!$B$6:$I$30,$A19,C$6),NA())) -> 28931.1 | D19: =IF(B19="",NA(),IFERROR(INDEX(财务数据输入!$B$6:$I$30,$A19,D$6),NA())) -> 31361.2 | E19: =IF(B19="",NA(),IFERROR(INDEX(财务数据输入!$B$6:$I$30,$A19,E$6),NA())) -> 31485.3 | F19: =IF(B19="",NA(),IFERROR(INDEX(财务数据输入!$B$6:$I$30,$A19,F$6),NA())) -> 33383 | G19: =IF(B19="",NA(),IFERROR(INDEX(财务数据输入!$B$6:$I$30,$A19,G$6),NA())) -> 37894.7
A20: =ROWS($B$15:B20) -> 6 | B20: =IF(财务数据输入!B11=0,"",财务数据输入!B11) -> 净利润 | C20: =IF(B20="",NA(),IFERROR(INDEX(财务数据输入!$B$6:$I$30,$A20,C$6),NA())) -> 558608.1 | D20: =IF(B20="",NA(),IFERROR(INDEX(财务数据输入!$B$6:$I$30,$A20,D$6),NA())) -> 597479.5 | E20: =IF(B20="",NA(),IFERROR(INDEX(财务数据输入!$B$6:$I$30,$A20,E$6),NA())) -> 614835.9 | F20: =IF(B20="",NA(),IFERROR(INDEX(财务数据输入!$B$6:$I$30,$A20,F$6),NA())) -> 662721 | G20: =IF(B20="",NA(),IFERROR(INDEX(财务数据输入!$B$6:$I$30,$A20,G$6),NA())) -> 674748.5
A21: =ROWS($B$15:B21) -> 7 | B21: =IF(财务数据输入!B12=0,"",财务数据输入!B12) -> 税费 | C21: =IF(B21="",NA(),IFERROR(INDEX(财务数据输入!$B$6:$I$30,$A21,C$6),NA())) -> 255767.4 | D21: =IF(B21="",NA(),IFERROR(INDEX(财务数据输入!$B$6:$I$30,$A21,D$6),NA())) -> 274988.6 | E21: =IF(B21="",NA(),IFERROR(INDEX(财务数据输入!$B$6:$I$30,$A21,E$6),NA())) -> 283356.7 | F21: =IF(B21="",NA(),IFERROR(INDEX(财务数据输入!$B$6:$I$30,$A21,F$6),NA())) -> 294245.3 | G21: =IF(B21="",NA(),IFERROR(INDEX(财务数据输入!$B$6:$I$30,$A21,G$6),NA())) -> 314082.5
A22: =ROWS($B$15:B22) -> 8 | B22: =IF(财务数据输入!B13=0,"",财务数据输入!B13) -> 税后利润 | C22: =IF(B22="",NA(),IFERROR(INDEX(财务数据输入!$B$6:$I$30,$A22,C$6),NA())) -> 384185.3 | D22: =IF(B22="",NA(),IFERROR(INDEX(财务数据输入!$B$6:$I$30,$A22,D$6),NA())) -> 398950.5 | E22: =IF(B22="",NA(),IFERROR(INDEX(财务数据输入!$B$6:$I$30,$A22,E$6),NA())) -> 406077.3 | F22: =IF(B22="",NA(),IFERROR(INDEX(财务数据输入!$B$6:$I$30,$A22,F$6),NA())) -> 424382 | G22: =IF(B22="",NA(),IFERROR(INDEX(财务数据输入!$B$6:$I$30,$A22,G$6),NA())) -> 502476.8
A23: =ROWS($B$15:B23) -> 9 | B23: =IF(财务数据输入!B14=0,"",财务数据输入!B14) -> 指标 1 | C23: =IF(B23="",NA(),IFERROR(INDEX(财务数据输入!$B$6:$I$30,$A23,C$6),NA())) -> 137.8 | D23: =IF(B23="",NA(),IFERROR(INDEX(财务数据输入!$B$6:$I$30,$A23,D$6),NA())) -> 142.9 | E23: =IF(B23="",NA(),IFERROR(INDEX(财务数据输入!$B$6:$I$30,$A23,E$6),NA())) -> 155.7 | F23: =IF(B23="",NA(),IFERROR(INDEX(财务数据输入!$B$6:$I$30,$A23,F$6),NA())) -> 167.8 | G23: =IF(B23="",NA(),IFERROR(INDEX(财务数据输入!$B$6:$I$30,$A23,G$6),NA())) -> 199.6
A24: =ROWS($B$15:B24) -> 10 | B24: =IF(财务数据输入!B15=0,"",财务数据输入!B15) -> 指标 2 | C24: =IF(B24="",NA(),IFERROR(INDEX(财务数据输入!$B$6:$I$30,$A24,C$6),NA())) -> 192.2 | D24: =IF(B24="",NA(),IFERROR(INDEX(财务数据输入!$B$6:$I$30,$A24,D$6),NA())) -> 201.7 | E24: =IF(B24="",NA(),IFERROR(INDEX(财务数据输入!$B$6:$I$30,$A24,E$6),NA())) -> 204.8 | F24: =IF(B24="",NA(),IFERROR(INDEX(财务数据输入!$B$6:$I$30,$A24,F$6),NA())) -> 218.4 | G24: =IF(B24="",NA(),IFERROR(INDEX(财务数据输入!$B$6:$I$30,$A24,G$6),NA())) -> 260.1
A25: =ROWS($B$15:B25) -> 11 | B25: =IF(财务数据输入!B16=0,"",财务数据输入!B16) -> 指标 3 | C25: =IF(B25="",NA(),IFERROR(INDEX(财务数据输入!$B$6:$I$30,$A25,C$6),NA())) -> 218.7 | D25: =IF(B25="",NA(),IFERROR(INDEX(财务数据输入!$B$6:$I$30,$A25,D$6),NA())) -> 231.9 | E25: =IF(B25="",NA(),IFERROR(INDEX(财务数据输入!$B$6:$I$30,$A25,E$6),NA())) -> 246.7 | F25: =IF(B25="",NA(),IFERROR(INDEX(财务数据输入!$B$6:$I$30,$A25,F$6),NA())) -> 263.9 | G25: =IF(B25="",NA(),IFERROR(INDEX(财务数据输入!$B$6:$I$30,$A25,G$6),NA())) -> 310.8
A26: =ROWS($B$15:B26) -> 12 | B26: =IF(财务数据输入!B17=0,"",财务数据输入!B17) -> 指标 4 | C26: =IF(B26="",NA(),IFERROR(INDEX(财务数据输入!$B$6:$I$30,$A26,C$6),NA())) -> 125.9 | D26: =IF(B26="",NA(),IFERROR(INDEX(财务数据输入!$B$6:$I$30,$A26,D$6),NA())) -> 137 | E26: =IF(B26="",NA(),IFERROR(INDEX(财务数据输入!$B$6:$I$30,$A26,E$6),NA())) -> 137.6 | F26: =IF(B26="",NA(),IFERROR(INDEX(财务数据输入!$B$6:$I$30,$A26,F$6),NA())) -> 145.9 | G26: =IF(B26="",NA(),IFERROR(INDEX(财务数据输入!$B$6:$I$30,$A26,G$6),NA())) -> 149.2
A27: =ROWS($B$15:B27) -> 13 | B27: =IF(财务数据输入!B18=0,"",财务数据输入!B18) -> 指标 5 | C27: =IF(B27="",NA(),IFERROR(INDEX(财务数据输入!$B$6:$I$30,$A27,C$6),NA())) -> 8.5 | D27: =IF(B27="",NA(),IFERROR(INDEX(财务数据输入!$B$6:$I$30,$A27,D$6),NA())) -> 8.9 | E27: =IF(B27="",NA(),IFERROR(INDEX(财务数据输入!$B$6:$I$30,$A27,E$6),NA())) -> 9.1 | F27: =IF(B27="",NA(),IFERROR(INDEX(财务数据输入!$B$6:$I$30,$A27,F$6),NA())) -> 10 | G27: =IF(B27="",NA(),IFERROR(INDEX(财务数据输入!$B$6:$I$30,$A27,G$6),NA())) -> 10.3
A28: =ROWS($B$15:B28) -> 14 | B28: =IF(财务数据输入!B19=0,"",财务数据输入!B19) -> 指标 6 | C28: =IF(B28="",NA(),IFERROR(INDEX(财务数据输入!$B$6:$I$30,$A28,C$6),NA())) -> 2.7 | D28: =IF(B28="",NA(),IFERROR(INDEX(财务数据输入!$B$6:$I$30,$A28,D$6),NA())) -> 2.8 | E28: =IF(B28="",NA(),IFERROR(INDEX(财务数据输入!$B$6:$I$30,$A28,E$6),NA())) -> 2.9 | F28: =IF(B28="",NA(),IFERROR(INDEX(财务数据输入!$B$6:$I$30,$A28,F$6),NA())) -> 3 | G28: =IF(B28="",NA(),IFERROR(INDEX(财务数据输入!$B$6:$I$30,$A28,G$6),NA())) -> 3.4
A29: =ROWS($B$15:B29) -> 15 | B29: =IF(财务数据输入!B20=0,"",财务数据输入!B20) ->  | C29: =IF(B29="",NA(),IFERROR(INDEX(财务数据输入!$B$6:$I$30,$A29,C$6),NA())) ->  | D29: =IF(B29="",NA(),IFERROR(INDEX(财务数据输入!$B$6:$I$30,$A29,D$6),NA())) ->  | E29: =IF(B29="",NA(),IFERROR(INDEX(财务数据输入!$B$6:$I$30,$A29,E$6),NA())) ->  | F29: =IF(B29="",NA(),IFERROR(INDEX(财务数据输入!$B$6:$I$30,$A29,F$6),NA())) ->  | G29: =IF(B29="",NA(),IFERROR(INDEX(财务数据输入!$B$6:$I$30,$A29,G$6),NA())) -> 
A30: =ROWS($B$15:B30) -> 16 | B30: =IF(财务数据输入!B21=0,"",财务数据输入!B21) ->  | C30: =IF(B30="",NA(),IFERROR(INDEX(财务数据输入!$B$6:$I$30,$A30,C$6),NA())) ->  | D30: =IF(B30="",NA(),IFERROR(INDEX(财务数据输入!$B$6:$I$30,$A30,D$6),NA())) ->  | E30: =IF(B30="",NA(),IFERROR(INDEX(财务数据输入!$B$6:$I$30,$A30,E$6),NA())) ->  | F30: =IF(B30="",NA(),IFERROR(INDEX(财务数据输入!$B$6:$I$30,$A30,F$6),NA())) ->  | G30: =IF(B30="",NA(),IFERROR(INDEX(财务数据输入!$B$6:$I$30,$A30,G$6),NA())) -> 
A31: =ROWS($B$15:B31) -> 17 | B31: =IF(财务数据输入!B22=0,"",财务数据输入!B22) ->  | C31: =IF(B31="",NA(),IFERROR(INDEX(财务数据输入!$B$6:$I$30,$A31,C$6),NA())) ->  | D31: =IF(B31="",NA(),IFERROR(INDEX(财务数据输入!$B$6:$I$30,$A31,D$6),NA())) ->  | E31: =IF(B31="",NA(),IFERROR(INDEX(财务数据输入!$B$6:$I$30,$A31,E$6),NA())) ->  | F31: =IF(B31="",NA(),IFERROR(INDEX(财务数据输入!$B$6:$I$30,$A31,F$6),NA())) ->  | G31: =IF(B31="",NA(),IFERROR(INDEX(财务数据输入!$B$6:$I$30,$A31,G$6),NA())) -> 
A32: =ROWS($B$15:B32) -> 18 | B32: =IF(财务数据输入!B23=0,"",财务数据输入!B23) ->  | C32: =IF(B32="",NA(),IFERROR(INDEX(财务数据输入!$B$6:$I$30,$A32,C$6),NA())) ->  | D32: =IF(B32="",NA(),IFERROR(INDEX(财务数据输入!$B$6:$I$30,$A32,D$6),NA())) ->  | E32: =IF(B32="",NA(),IFERROR(INDEX(财务数据输入!$B$6:$I$30,$A32,E$6),NA())) ->  | F32: =IF(B32="",NA(),IFERROR(INDEX(财务数据输入!$B$6:$I$30,$A32,F$6),NA())) ->  | G32: =IF(B32="",NA(),IFERROR(INDEX(财务数据输入!$B$6:$I$30,$A32,G$6),NA())) -> 
A33: =ROWS($B$15:B33) -> 19 | B33: =IF(财务数据输入!B24=0,"",财务数据输入!B24) ->  | C33: =IF(B33="",NA(),IFERROR(INDEX(财务数据输入!$B$6:$I$30,$A33,C$6),NA())) ->  | D33: =IF(B33="",NA(),IFERROR(INDEX(财务数据输入!$B$6:$I$30,$A33,D$6),NA())) ->  | E33: =IF(B33="",NA(),IFERROR(INDEX(财务数据输入!$B$6:$I$30,$A33,E$6),NA())) ->  | F33: =IF(B33="",NA(),IFERROR(INDEX(财务数据输入!$B$6:$I$30,$A33,F$6),NA())) ->  | G33: =IF(B33="",NA(),IFERROR(INDEX(财务数据输入!$B$6:$I$30,$A33,G$6),NA())) -> 
A34: =ROWS($B$15:B34) -> 20 | B34: =IF(财务数据输入!B25=0,"",财务数据输入!B25) ->  | C34: =IF(B34="",NA(),IFERROR(INDEX(财务数据输入!$B$6:$I$30,$A34,C$6),NA())) ->  | D34: =IF(B34="",NA(),IFERROR(INDEX(财务数据输入!$B$6:$I$30,$A34,D$6),NA())) ->  | E34: =IF(B34="",NA(),IFERROR(INDEX(财务数据输入!$B$6:$I$30,$A34,E$6),NA())) ->  | F34: =IF(B34="",NA(),IFERROR(INDEX(财务数据输入!$B$6:$I$30,$A34,F$6),NA())) ->  | G34: =IF(B34="",NA(),IFERROR(INDEX(财务数据输入!$B$6:$I$30,$A34,G$6),NA())) -> 
A35: =ROWS($B$15:B35) -> 21 | B35: =IF(财务数据输入!B26=0,"",财务数据输入!B26) ->  | C35: =IF(B35="",NA(),IFERROR(INDEX(财务数据输入!$B$6:$I$30,$A35,C$6),NA())) ->  | D35: =IF(B35="",NA(),IFERROR(INDEX(财务数据输入!$B$6:$I$30,$A35,D$6),NA())) ->  | E35: =IF(B35="",NA(),IFERROR(INDEX(财务数据输入!$B$6:$I$30,$A35,E$6),NA())) ->  | F35: =IF(B35="",NA(),IFERROR(INDEX(财务数据输入!$B$6:$I$30,$A35,F$6),NA())) ->  | G35: =IF(B35="",NA(),IFERROR(INDEX(财务数据输入!$B$6:$I$30,$A35,G$6),NA())) -> 
A36: =ROWS($B$15:B36) -> 22 | B36: =IF(财务数据输入!B27=0,"",财务数据输入!B27) ->  | C36: =IF(B36="",NA(),IFERROR(INDEX(财务数据输入!$B$6:$I$30,$A36,C$6),NA())) ->  | D36: =IF(B36="",NA(),IFERROR(INDEX(财务数据输入!$B$6:$I$30,$A36,D$6),NA())) ->  | E36: =IF(B36="",NA(),IFERROR(INDEX(财务数据输入!$B$6:$I$30,$A36,E$6),NA())) ->  | F36: =IF(B36="",NA(),IFERROR(INDEX(财务数据输入!$B$6:$I$30,$A36,F$6),NA())) ->  | G36: =IF(B36="",NA(),IFERROR(INDEX(财务数据输入!$B$6:$I$30,$A36,G$6),NA())) -> 
A37: =ROWS($B$15:B37) -> 23 | B37: =IF(财务数据输入!B28=0,"",财务数据输入!B28) ->  | C37: =IF(B37="",NA(),IFERROR(INDEX(财务数据输入!$B$6:$I$30,$A37,C$6),NA())) ->  | D37: =IF(B37="",NA(),IFERROR(INDEX(财务数据输入!$B$6:$I$30,$A37,D$6),NA())) ->  | E37: =IF(B37="",NA(),IFERROR(INDEX(财务数据输入!$B$6:$I$30,$A37,E$6),NA())) ->  | F37: =IF(B37="",NA(),IFERROR(INDEX(财务数据输入!$B$6:$I$30,$A37,F$6),NA())) ->  | G37: =IF(B37="",NA(),IFERROR(INDEX(财务数据输入!$B$6:$I$30,$A37,G$6),NA())) -> 
A38: =ROWS($B$15:B38) -> 24 | B38: =IF(财务数据输入!B29=0,"",财务数据输入!B29) ->  | C38: =IF(B38="",NA(),IFERROR(INDEX(财务数据输入!$B$6:$I$30,$A38,C$6),NA())) ->  | D38: =IF(B38="",NA(),IFERROR(INDEX(财务数据输入!$B$6:$I$30,$A38,D$6),NA())) ->  | E38: =IF(B38="",NA(),IFERROR(INDEX(财务数据输入!$B$6:$I$30,$A38,E$6),NA())) ->  | F38: =IF(B38="",NA(),IFERROR(INDEX(财务数据输入!$B$6:$I$30,$A38,F$6),NA())) ->  | G38: =IF(B38="",NA(),IFERROR(INDEX(财务数据输入!$B$6:$I$30,$A38,G$6),NA())) -> 
A39: =ROWS($B$15:B39) -> 25 | B39: =IF(财务数据输入!B30=0,"",财务数据输入!B30) ->  | C39: =IF(B39="",NA(),IFERROR(INDEX(财务数据输入!$B$6:$I$30,$A39,C$6),NA())) ->  | D39: =IF(B39="",NA(),IFERROR(INDEX(财务数据输入!$B$6:$I$30,$A39,D$6),NA())) ->  | E39: =IF(B39="",NA(),IFERROR(INDEX(财务数据输入!$B$6:$I$30,$A39,E$6),NA())) ->  | F39: =IF(B39="",NA(),IFERROR(INDEX(财务数据输入!$B$6:$I$30,$A39,F$6),NA())) ->  | G39: =IF(B39="",NA(),IFERROR(INDEX(财务数据输入!$B$6:$I$30,$A39,G$6),NA())) -> 
